Workbook

Sheet меню 5-11 кл.деревни Азн.район
A2: Согласовано | K2: Утверждаю
A3: Директор ООО "ЭТАЛОН +" | K3: Директор МБОУ СОШ
A4: Подин В.А. | K4: ____________________________________
A5: ____________________________________ | K5: ____________________________________
A9: Рецептура | B9: Наименование | C9: Выход.гр | D9: Белки,гр | E9: Жиры,гр | F9: Углеводы, | G9: Калорийность. | H9: Вит.В1 | I9: Вит.с | J9: Вит.А,мг | K9: Вит ,Е.,мг | L9: Са,мг | M9: Р.мг | N9: Mg.мг | O9: Fе,мг
B10: блюд
B11: 5-11 классы | D11: 1 день
A12: №297,2004 | B12: Каша ячневая молочная с маслом | C12: 150/10 | D12: 8.40 | E12: 11.80 | F12: 44.40 | G12: 317.20 | H12: 0.20 | I12: 0.10 | J12: 0.50 | K12: 1.50 | L12: 117.80 | M12: 177.30 | N12: 48.80 | O12: 1.50
A13: №205,2003 | B13: фрикадельки в соусе | C13: 55/50 | D13: 8.320 | E13: 7.743 | F13: 3.194 | G13: 175 | H13: 0.030 | I13: 0.650 | J13: 0.1 | K13: 1.256 | L13: 100.530 | M13: 110.071 | N13: 0.077 | O13: 1.00
A14: №770,20004 | B14: каша гречневая рас с маслом | C14: 150/5 | D14: 6.662 | E14: 9.024 | F14: 34 | G14: 170 | H14: 0.292 | I14: - | K14: 0.518 | L14: 37.352 | M14: 170.553 | N14: 40.55 | O14: 1.101
A15: №685,2004 | B15: чай с сахаром | C15: 30 | D15: 0.530 | E15: - | F15: 9.470 | G15: 40 | H15: - | I15: 0.270 | J15: - | K15: - | L15: 13.600 | M15: 22.130 | N15: 11.730 | O15: 0.1
B16: Хлеб белый,1с | D16: 2.280 | E16: 0.240 | F16: 14.760 | G16: 71 | H16: 0.033 | I16: - | J16: - | K16: 0.330 | L16: 6.000 | M16: 19.500 | N16: 4.200 | O16: 0.33
A17: Итого | D17: =SUM(D12:D16) -> 26.192 | E17: 21.064 | F17: 102.630 | G17: 773.2 | H17: 0.525 | I17: 0.370 | J17: 0.50 | K17: 2.35 | L17: 174.75 | M17: 389.48 | N17: 105.28 | O17: 3.03
B18: ГПД
A19: №311,2004 | B19: Каша пшенная молочная с маслом | C19: 200/10 | D19: 8.4 | E19: 11.8 | F19: 44.4 | G19: 317.2 | H19: 0.2 | I19: 0.1 | J19: 0.5 | K19: 1.5 | L19: 117.8 | M19: 177.3 | N19: 48.8 | O19: 1.5
A20: №769,2004 | B20: печенье | C20: 40 | D20: 2.4 | E20: 1.9 | F20: 30 | G20: 146.4 | H20: 0 | I20: 0 | J20: 0 | K20: 0 | L20: 4.4 | M20: 20 | N20: 3.6 | O20: 0.3
A21: №685,2004 | B21: чай с сахаром | C21: 200/15 | D21: 0.084 | E21: 0.012 | F21: 15.185 | G21: 62 | H21: 0.003 | I21: 2.800 | K21: 0.014 | L21: 3.250 | M21: 1.540 | N21: 0.840 | O21: 0.087
B22: хлеб белый,1с | C22: 30 | D22: 2.280 | E22: 0.240 | F22: 14.760 | G22: 71 | H22: 0.033 | K22: 0.330 | L22: 6.000 | M22: 19.500 | N22: 4.200 | O22: 0.330.
A23: Итого | D23: =SUM(D19:D22) -> 13.164 | E23: 13.952 | F23: 104.345 | G23: 596.600 | H23: 0.236 | I23: 2.900 | J23: 0.500 | K23: 1.844 | L23: 131.450 | M23: 218.340 | N23: 57.440 | O23: 1.887
B24: 5-11 классы | D24: 2 день
A25: №302, 2004 | B25: каша рисовая молочная с маслом | C25: 200/10 | D25: 10.8 | E25: 8 | F25: 77.6 | G25: 298 | H25: 0.3 | I25: 9 | J25: 0.46 | K25: 0.8 | L25: 172.64 | M25: 433.6 | N25: 134.98 | O25: 2.8
A26: №413,2004 | B26: колб.изд-и | C26: 50 | D26: 7.4 | E26: 9.45 | F26: 0.8 | G26: 108 | H26: 0.03 | I26: - | J26: - | K26: 0.5 | L26: 25 | M26: 139.001 | N26: 15 | O26: 1.8
A27: №741,2004 | B27: суп с макарон. Издеоиями | D27: 6.4 | E27: 7.4 | F27: 20.6 | G27: 174.9 | H27: 0.1 | I27: 0.2 | J27: 6.8 | K27: 2.2 | L27: 24.2 | M27: 89.8 | N27: 25.9 | O27: 1.6
A28: №685,2004 | B28: компот из с/фруктов | C28: 400 | D28: 0 | E28: 0 | F28: 19.4 | G28: 77.4 | H28: 0 | I28: 0 | J28: 0 | K28: 0 | L28: 0.4 | M28: 0 | N28: 0 | O28: 0
B29: хлеб сельский,1с | C29: 20 | D29: 1.300 | E29: 0.200 | F29: 7.000 | G29: 35 | H29: 0.000 | I29: 0.000 | J29: 0.000 | K29: 0.000 | L29: 12.500 | M29: 5.700 | N29: 7.400 | O29: 0.7
B30: хлеб белый,1с | C30: 30 | D30: 2.280 | E30: 0.240 | F30: 14.760 | G30: 71 | H30: 0.033 | I30: - | J30: - | K30: 0.330 | L30: 6.000 | M30: 19.500 | N30: 4.200 | O30: 0.33
A31: Итого | D31: =SUM(D25:D30) -> 28.18 | E31: =SUM(E25:E30) -> 25.290 | F31: =SUM(F25:F30) -> 140.160 | G31: =SUM(G25:G30) -> 764 | H31: =SUM(H25:H30) -> 0.463 | I31: =SUM(D31:H31) -> 958.393 | J31: =SUM(J25:J30) -> 7.260 | K31: 3.83 | L31: 240.74 | M31: 687.601 | N31: 187.48 | O31: 7.23
B32: ГПД
A33: №110,2004 | B33: Борщ из свежей капусты | C33: 250/10 | D33: 6 | E33: 8.7 | F33: 14.5 | G33: 164.2 | H33: 0 | I33: 0.2 | J33: 9 | K33: 1.9 | L33: 47.3 | M33: 89.1 | N33: 29.1 | O33: 1.8
A34: №639,2004 | B34: компот из сухофруктов | C34: 200 | D34: 0 | E34: 0 | F34: 19.4 | G34: 77.4 | H34: 0 | I34: 0 | J34: 0 | K34: 0 | L34: 0.4 | M34: 0 | N34: 0 | O34: 0
B35: хлеб сельский 1с | C35: 20 | D35: 1.300 | E35: 0.200 | F35: 7.000 | G35: 35 | H35: 0.000 | I35: 0.000 | J35: 0.000 | K35: 0.000 | L35: 12.500 | M35: 5.700 | N35: 7.400 | O35: 0.7
A36: Итого | D36: =SUM(D33:D35) -> 7.300 | E36: 8.900 | F36: 40.900 | G36: 277 | H36: 0.000 | I36: 0.200 | J36: 9.000 | K36: 1.900 | L36: 60.200 | M36: 94.800 | N36: 36.500 | O36: 2.5
B37: 5-11 классы | D37: 3 день
A38: №332,2004 | B38: пюре картофеьное | C38: 150 | D38: 3.090 | E38: 8.282 | F38: 22.000 | G38: 172 | H38: 0.164 | I38: 7.943 | J38: 0.080 | K38: 0.231 | L38: 47.805 | M38: 98.835 | N38: 8.000 | O38: 0.000
A39: №338,2004 | B39: Котлеты рыбные | C39: 80 | D39: 6.450 | E39: 4.240 | F39: 7.490 | G39: 116 | H39: 0.050 | I39: 0.480 | J39: 0.100 | K39: 0.646 | L39: 44.020 | M39: 137.060 | N39: 12.000 | O39: 0.000
B40: суп картофельный | D40: 7.6 | E40: 9.4 | F40: 21.3 | G40: 203.7 | H40: 0.2 | I40: 0.2 | J40: 4.8 | K40: 3.3 | L40: 31.5 | M40: 127.6 | N40: 55.9 | O40: 2.5
A41: №685,2004 | B41: Чай с сахаром | C41: 400/30 | D41: 0.084 | E41: 0.012 | F41: 15.185 | G41: 62 | H41: 0.003 | I41: 2.8 | K41: 0.014 | L41: 3.25 | M41: 1.54 | N41: 0.84 | O41: 0.087
B42: Хлеб белый,1с | C42: 30 | D42: 2.280 | E42: 0.240 | F42: 14.760 | G42: 71 | H42: 0.033 | I42: - | J42: - | K42: 0.330 | L42: 6.000 | M42: 19.500 | N42: 4.200 | O42: 0.33
A43: Итого | D43: 19.50 | E43: 22.17 | F43: =SUM(F38:F42) -> 80.735 | G43: 624.700 | H43: 0.450. | I43: 11.423. | J43: 4.980 | K43: 4.290 | L43: 84.770 | M43: 285.700 | N43: 72.940 | O43: 2.917
B44: ГПД
B45: суп бобовый | C45: 250/10 | D45: 14.9 | E45: 12.1 | F45: 15.2 | G45: 230.2 | H45: 0.3 | I45: 0.2 | J45: 5.1 | K45: 7.1 | L45: 112.7 | M45: 230.7 | N45: 80 | O45: 5.2
B46: Печенье | C46: 40 | D46: 2.4 | E46: 1.9 | F46: 30 | G46: 146.4 | H46: 0 | I46: 0 | J46: 0 | K46: 0 | L46: 4.4 | M46: 20 | N46: 3.6 | O46: 0.3
B47: Кисель фруктовый | C47: 200 | D47: 1.000 | E47: 0.050 | F47: 27.500 | G47: 110 | H47: 0.010 | I47: 0.800 | J47: 0.500 | K47: 0.000 | L47: 28.690 | M47: 18.270 | N47: 0.670 | O47: 0.300
B48: хлеб белый 1с | C48: 20 | D48: 2.280 | E48: 0.240 | F48: 14.760 | G48: 71 | H48: 0.033 | I48: - | J48: - | K48: 0.330 | L48: 6.000 | M48: 19.500 | N48: 4.200 | O48: 0.330
A49: Итого | D49: =SUM(D45:D48) -> 20.580 | E49: 14.290 | F49: 87.460 | G49: 557.600 | H49: 0.343 | I49: 1.000 | J49: 5.600 | K49: 7.430 | L49: 151.790 | M49: 288.470 | N49: 88.470 | O49: 6.130
B50: 5-11 классы | D50: 4 день
A51: №311,2004 | B51: Каша пшенная | C51: 200/10 | D51: 2.5 | E51: 3 | F51: 14.5 | G51: 94.4 | H51: 0.06 | I51: 0 | J51: 0 | K51: 0.06 | L51: 14.83 | M51: 12.3 | N51: 53.06 | O51: 1.5
A52: №205,2003 | B52: Котлеты из птицы | C52: 50 | D52: 10.24 | E52: 5.37 | F52: 19.36 | G52: 159 | H52: 0.08 | I52: 0 | K52: - | L52: 89.43 | M52: 158 | N52: 0.64 | O52: 0.3
A53: №769,2004 | B53: каша манная | D53: 10.8 | E53: 8 | F53: 77.6 | G53: 298 | H53: 0.3 | I53: 9 | J53: 0.46 | K53: 0.8 | L53: 172.64 | M53: 433.6 | N53: 134.98 | O53: 2.8
A54: №639,2004 | B54: Компот из сухофруктов | C54: 400 | D54: 0.000 | E54: 0.000 | F54: 19.400 | G54: 77 | H54: 0.000 | I54: 0.000 | J54: 0.000 | K54: 0.000 | L54: 0.400 | M54: 0.000 | N54: 0.000 | O54: 0
B55: Хлеб сельский,1с | C55: 20 | D55: 1.000 | E55: 0.200 | F55: 9.000 | G55: 44 | H55: 0.014 | I55: 0.000 | J55: 0.000 | K55: 0.108 | L55: 2.760 | M55: 12.720 | N55: 3.000 | O55: 0.372.
A56: Итого | D56: =SUM(D51:D55) -> 24.54 | E56: 16.57 | F56: 139.86 | G56: 672.8 | H56: 0.454 | I56: 9 | J56: 0.46 | K56: 0.968 | L56: 280.06 | M56: 616.62 | N56: 191.68 | O56: 4.6
B57: ГПД
A58: №311,2004 | B58: Каша ячневая молочная с маслом | C58: 200/10 | D58: 8.4 | E58: 11.8 | F58: 44.4 | G58: 317.2 | H58: 0.2 | I58: 0.1 | J58: 0.5 | K58: 1.5 | L58: 117.8 | M58: 177.3 | N58: 48.8 | O58: 1.5
A59: №769,2004 | B59: печенье | C59: 40 | D59: 2.4 | E59: 1.9 | F59: 30 | G59: 146.4 | H59: 0 | I59: 0 | J59: 0 | K59: 0 | L59: 4.4 | M59: 20 | N59: 3.6 | O59: 0.3
A60: №685,2004 | B60: чай с сахаром | C60: 200/15 | D60: 0.084 | E60: 0.012 | F60: 15.185 | G60: 62 | H60: 0.003 | I60: 2.800 | K60: 0.014 | L60: 3.250 | M60: 1.540 | N60: 0.840 | O60: 0.087
B61: хлеб белый,1с | C61: 30 | D61: 2.280 | E61: 0.240 | F61: 14.760 | G61: 71 | H61: 0.033 | K61: 0.330 | L61: 6.000 | M61: 19.500 | N61: 4.200 | O61: 0.330.
A62: Итого | D62: =SUM(D58:D61) -> 13.164 | E62: 13.952 | F62: 104.345 | G62: 596.600 | H62: 0.236 | I62: 2.900 | J62: 0.500 | K62: 1.844 | L62: 131.450 | M62: 218.340 | N62: 57.440 | O62: 1.887
B63: 5-11 классы | D63: 5 день
A64: №508,2004 | B64: Каша гречневая молочная с маслом | C64: 150/5 | D64: 7.2 | E64: 11.4 | F64: 43.5 | G64: 304.7 | H64: 0.1 | I64: 0.1 | J64: 0.5 | K64: 0.9 | L64: 120 | M64: 156.9 | N64: 40.7 | O64: 1
A65: №450,1996 | B65: Птица запеченная | C65: 75 | D65: 7.100 | E65: 4.000 | F65: 107.000 | G65: 0 | H65: 3.750 | I65: 48.000 | J65: 0.830 | K65: 21.080 | L65: 194.810 | M65: 24.520 | N65: 1.658 | O65: 0.000
B66: каша перловая раст | C66: 150 | D66: 3.600 | E66: 5.300 | F66: 25.700 | G66: 165 | H66: 0.000 | I66: 0.000 | J66: 0.000 | K66: 1.600 | L66: 30.900 | M66: 16.000 | N66: 118.400 | O66: 0.800
A67: №639,2004 | B67: Компот из сухофруктов | C67: 400 | D67: 0.000 | E67: 0.000 | F67: 19.400 | G67: 77 | H67: 0.000 | I67: 0.000 | J67: 0.000 | K67: 0.000 | L67: 0.400 | M67: 0.000 | N67: 0.000 | O67: 0.000
B68: Хлеб сельский , 1с | C68: 20 | D68: 1.000 | E68: 0.200 | F68: 9.000 | G68: 44 | H68: 0.014 | I68: 0.000 | J68: 0.000 | K68: 0.108 | L68: 2.760 | M68: 12.720 | N68: 3.000 | O68: 0.372
A69: Итого | D69: =SUM(D64:D68) -> 18.900 | E69: 20.900 | F69: 204.600 | G69: 590.813 | H69: 3.864 | I69: 48.100 | J69: 1.330 | K69: 23.688 | L69: 346.110 | M69: 197.420 | N69: 160.758 | O69: 1.800
B70: ГПД
A71: №138,2004 | B71: Суп картофельный с крупой | C71: 250/10 | D71: 7.6 | E71: 9.4 | F71: 21.3 | G71: 203.7 | H71: 0.2 | I71: 0.2 | J71: 4.8 | K71: 3.3 | L71: 31.5 | M71: 127.6 | N71: 55.9 | O71: 2.5
A72: №774,2004 | B72: пряник | C72: 40 | D72: 2.4 | E72: 1.9 | F72: 30.0 | G72: 146 | H72: 0.00 | I72: 0 | J72: 0.000 | K72: 0.00 | L72: 4.40 | M72: 20.00 | N72: 3.600 | O72: 0.300
A73: №639,2004 | B73: Компот из сухофруктов | C73: 200 | D73: 0.000 | E73: 0.000 | F73: 19.400 | G73: 77 | H73: 0.000 | I73: 0.000 | J73: 0.000 | K73: 0.000 | L73: 0.400 | M73: 0.000 | N73: 0.000 | O73: 0.000
B74: Хлеб белый,1с | C74: 30 | D74: 1.000 | E74: 0.200 | F74: 9.000 | G74: 44 | H74: 0.014 | I74: 0.000 | J74: 0.000 | K74: 0.108 | L74: 2.760 | M74: 12.720 | N74: 3.000 | O74: 0.372.
A75: Итого | D75: =SUM(D71:D74) -> 11.000 | E75: 11.500 | F75: 79.700 | G75: 471.500 | H75: 0.214 | I75: 0.200 | J75: 4.800 | K75: 3.408 | L75: 39.060 | M75: 160.320 | N75: 62.500 | O75: 2.800
B76: 5-11 классы | D76: 6 день
A77: №770,2004 | B77: каша молочная манная | C77: 150/5 | D77: 8.4 | E77: 11.8 | F77: 44.4 | G77: 317.2 | H77: 0.2 | I77: 0.1 | J77: 0.5 | K77: 1.5 | L77: 117.8 | M77: 177.3 | N77: 48.8 | O77: 1.5
B78: хлеб белый | C78: 30 | D78: 2.280 | E78: 0.240 | F78: 14.760 | G78: 71 | H78: 0.033 | I78: 0.000 | J78: 0.000 | K78: 0.330 | L78: 6.000 | M78: 19.500 | N78: 4.200 | O78: 0.330
A79: №685,2004 | B79: чай с сахаром | C79: 200/15 | D79: 0.200 | F79: 13.700 | G79: 56 | H79: 0.008 | I79: 3.750 | K79: 0.075 | L79: 9.970 | M79: 7.500 | N79: 6.500 | O79: 0.197
A80: итого | D80: 10.88. | E80: 22.92 | F80: 72.86. | G80: =SUM(G77:G79) -> 444.200 | H80: 0.241 | I80: =SUM(I77:I79) -> 3.850 | J80: =SUM(J77:J79) -> 0.500 | K80: 1.905 | L80: 133.77 | M80: 204.30 | N80: 59.50 | O80: 2.027
